bitfinex/quotes_BTCUSD_20250110
["timestamp","ask_amount","ask_price","bid_price","bid_amount"]
[1736526093666,0.25429976,93812.0,93811.0,9.327e-05]
[1736526094301,0.25429976,93812.0,93811.0,0.00209327]
[1736526095075,0.25629976,93812.0,93811.0,0.00209327]
[1736526095274,0.10629976,93812.0,93811.0,0.00209327]
[1736526095478,0.10629976,93812.0,93811.0,9.327e-05]
[1736526095479,0.002,93812.0,93811.0,9.327e-05]
[1736526095886,0.003,93812.0,93811.0,9.327e-05]
[1736526096265,0.213178,93819.0,93811.0,9.327e-05]
[1736526096266,0.213189,93814.0,93811.0,9.327e-05]
[1736526097096,0.213192,93812.0,93811.0,9.327e-05]
[1736526097318,0.31749176,93812.0,93811.0,9.327e-05]
[1736526097551,0.31949176,93812.0,93811.0,9.327e-05]
[1736526097759,0.31749176,93812.0,93811.0,9.327e-05]
[1736526097957,0.32801879,93812.0,93811.0,9.327e-05]
[1736526098160,0.32801879,93812.0,93811.0,0.00109327]
[1736526098540,0.213192,93812.0,93811.0,0.00109327]
[1736526098739,0.001,93814.0,93811.0,0.00109327]
[1736526098966,0.22389964,93823.0,93811.0,9.327e-05]
[1736526098967,0.09541656,93823.0,93811.0,9.327e-05]
[1736526099165,0.213178,93819.0,93811.0,9.327e-05]
[1736526099375,0.213178,93819.0,93811.0,0.00209327]
[1736526099634,0.10429976,93818.0,93811.0,0.00209327]
[1736526099858,0.15,93817.0,93811.0,0.00209327]
[1736526100064,0.213188,93814.0,93811.0,0.00209327]
[1736526100244,0.426376,93814.0,93811.0,0.00209327]
[1736526100614,0.426376,93814.0,93811.0,9.327e-05]
[1736526100828,0.213192,93812.0,93811.0,9.327e-05]
[1736526101027,0.31749176,93812.0,93811.0,0.00409327]
[1736526101498,0.62507774,93812.0,93811.0,9.327e-05]
[1736526101727,0.67217774,93812.0,93811.0,0.00109327]
[1736526101932,0.59749176,93812.0,93811.0,0.00109327]
[1736526102111,0.59749176,93812.0,93811.0,9.327e-05]
[1736526102319,0.59849176,93812.0,93811.0,9.327e-05]
[1736526102526,0.60934809,93812.0,93811.0,9.327e-05]
[1736526102737,0.71264785,93812.0,93777.0,8.52e-05]
[1736526102940,0.33536,93782.0,93781.0,0.0002314]
[1736526103149,0.59989976,93782.0,93781.0,0.0002314]
[1736526104205,0.60189976,93782.0,93781.0,0.0002314]
[1736526104812,0.213315,93758.0,93739.0,0.023]
[1736526105027,0.213317,93757.0,93742.0,0.00048498]
[1736526105237,0.213329,93752.0,93742.0,0.00048498]
[1736526105423,0.01050286,93780.0,93742.0,0.00048498]
[1736526105636,0.426538,93778.0,93742.0,0.00048498]
[1736526105865,0.213348,93744.0,93742.0,0.00048498]
[1736526106300,0.31764776,93744.0,93742.0,0.00048498]
[1736526106747,0.213348,93744.0,93742.0,0.00048498]
[1736526107647,0.1227,93765.0,93742.0,0.00948498]
[1736526107857,0.1227,93765.0,93743.0,0.023]
[1736526108063,0.1227,93765.0,93742.0,0.10478474]
[1736526108064,0.22699976,93765.0,93742.0,0.00048498]
[1736526108278,0.001,93744.0,93742.0,0.00048498]
[1736526108485,0.15,93761.0,93742.0,0.00048498]
[1736526108698,0.213349,93744.0,93742.0,0.00048498]
[1736526109131,0.213342,93746.0,93742.0,0.00048498]
[1736526109348,0.002,93744.0,93742.0,0.00048498]
[1736526109753,0.213304,93763.0,93742.0,0.00048498]
[1736526109754,0.213313,93759.0,93742.0,0.00048498]
[1736526109961,0.213313,93759.0,93744.0,0.213346]
[1736526110175,0.213304,93763.0,93744.0,0.213346]
[1736526110352,0.0475,93765.0,93745.0,0.00106665]
[1736526110353,0.002,93765.0,93745.0,0.00106665]
[1736526110559,0.002,93765.0,93754.0,0.213323]
[1736526110819,0.0773,93778.0,93765.0,0.213298]
[1736526111042,0.0469,93781.0,93773.0,0.213279]
[1736526111265,0.213254,93785.0,93767.0,0.023]
[1736526111501,0.0751,93792.0,93756.0,0.15]
[1736526111502,0.21324,93791.0,93776.0,0.213272]
[1736526111708,0.42648,93791.0,93776.0,0.213272]
[1736526111909,0.0751,93792.0,93768.0,0.10429976]
[1736526112119,0.213267,93779.0,93765.0,0.213297]
[1736526112327,0.213263,93781.0,93770.0,0.213285]
[1736526112544,0.213263,93781.0,93771.0,0.213284]
[1736526112756,0.213273,93777.0,93767.0,0.213293]
[1736526113173,0.213263,93781.0,93767.0,0.213293]
[1736526113375,0.213263,93781.0,93768.0,0.213292]
[1736526113578,0.213252,93786.0,93757.0,0.023]
[1736526113753,0.213252,93786.0,93759.0,0.023]
[1736526113962,0.213252,93786.0,93772.0,0.213282]
[1736526114162,0.00014588,93792.0,93773.0,0.10429976]
[1736526114368,0.00014588,93792.0,93785.0,0.213253]
[1736526114602,0.00014588,93792.0,93775.0,0.023]
[1736526114813,0.00014588,93792.0,93767.0,0.001]
[1736526114814,0.00014588,93792.0,93768.0,0.002]
[1736526115020,0.21328,93774.0,93768.0,0.002]
[1736526115263,0.15,93789.0,93767.0,0.001]
[1736526115471,0.213282,93773.0,93767.0,0.001]
[1736526115652,0.213282,93773.0,93762.0,0.213305]
[1736526115856,0.10429976,93788.0,93757.0,0.023]
[1736526116059,0.213288,93770.0,93758.0,0.213315]
[1736526116264,0.21328,93774.0,93752.0,0.023]
[1736526116467,0.21328,93774.0,93759.0,0.213312]
[1736526116673,0.215281,93773.0,93767.0,0.003]
[1736526117074,0.002,93773.0,93767.0,0.003]
[1736526117273,0.213292,93768.0,93767.0,0.003]
[1736526117410,0.261592,93768.0,93767.0,0.003]
[1736526118019,0.0483,93768.0,93743.0,0.02083442]
[1736526118214,0.0483,93768.0,93739.0,0.213356]
[1736526118215,0.10429976,93767.0,93714.0,8.53e-05]
[1736526118462,0.21332,93756.0,93745.0,0.213344]
[1736526118662,0.213309,93761.0,93749.0,0.213335]
[1736526118872,0.213309,93761.0,93738.0,0.213358]
[1736526118873,0.426618,93761.0,93758.0,0.006]
[1736526119055,0.213331,93751.0,93738.0,0.21336]
[1736526119238,0.0483,93768.0,93745.0,0.213342]
[1736526119442,0.10429976,93767.0,93733.0,0.023]
[1736526119651,0.213323,93755.0,93743.0,0.213348]
[1736526120419,0.213299,93765.0,93743.0,0.213348]
[1736526120420,0.213299,93765.0,93745.0,0.213344]
[1736526120621,0.213305,93763.0,93747.0,0.023]
[1736526120825,0.001,93767.0,93749.0,0.023]
[1736526121036,0.213311,93760.0,93749.0,0.023]
[1736526121246,0.001,93755.0,93748.0,0.023]
[1736526121462,0.001,93755.0,93748.0,0.02406656]
[1736526121676,0.001,93755.0,93743.0,0.213348]
[1736526121886,0.001,93755.0,93747.0,0.213339]
[1736526122698,0.213342,93747.0,93735.0,0.213367]
[1736526122939,0.213352,93742.0,93733.0,0.00048498]
[1736526123361,0.213344,93746.0,93734.0,0.213369]
[1736526123566,0.0493,93760.0,93733.0,0.00048498]
[1736526123775,0.213354,93741.0,93733.0,0.00048498]
[1736526123985,0.213356,93740.0,93733.0,0.00048498]
[1736526124394,0.213349,93744.0,93733.0,0.00048498]
[1736526124602,0.213334,93750.0,93738.0,0.213359]
[1736526125017,0.05986019,93760.0,93733.0,0.00048498]
[1736526125223,0.213315,93758.0,93735.0,0.173]
[1736526125429,0.0493,93760.0,93747.0,0.006]
[1736526125430,0.213336,93749.0,93747.0,0.006]
[1736526125646,0.213327,93753.0,93733.0,0.00048498]
[1736526125850,0.213281,93773.0,93743.0,0.023]
[1736526126056,0.0462,93775.0,93735.0,0.156]
[1736526126057,0.213317,93758.0,93735.0,0.156]
[1736526126260,0.213317,93757.0,93744.0,0.213345]
[1736526126479,0.10429976,93771.0,93738.0,0.213358]
[1736526126686,0.10429976,93771.0,93736.0,0.10429976]
[1736526126909,0.10429976,93771.0,93734.0,0.213368]
[1736526126910,0.15,93769.0,93734.0,0.213368]
[1736526127123,0.213354,93741.0,93733.0,0.00048498]
[1736526127332,0.213364,93737.0,93733.0,0.00048498]
[1736526127542,0.213343,93746.0,93733.0,0.00048498]
[1736526127543,0.21336,93739.0,93733.0,0.00048498]
[1736526127965,0.213349,93743.0,93735.0,0.001]
[1736526128171,0.046,93745.0,93735.0,0.001]
[1736526128304,0.213359,93739.0,93733.0,0.00048498]
[1736526128508,0.213351,93742.0,93733.0,0.00048498]
[1736526128716,0.213334,93750.0,93738.0,0.213359]
[1736526128919,0.213334,93750.0,93736.0,0.213365]
[1736526129131,0.213335,93750.0,93736.0,0.023]
[1736526129335,0.001,93758.0,93735.0,0.214367]
[1736526129540,0.213336,93749.0,93736.0,0.236365]
[1736526129733,0.213329,93752.0,93739.0,0.213356]
[1736526129933,0.001,93758.0,93741.0,0.213353]
[1736526130153,0.21334,93747.0,93737.0,0.213362]
[1736526130351,0.213331,93751.0,93738.0,0.21336]
[1736526130802,0.213327,93753.0,93737.0,0.213362]
[1736526131159,0.001,93758.0,93740.0,0.213356]
[1736526131416,0.001,93758.0,93756.0,0.213317]
[1736526131665,0.001,93758.0,93741.0,0.10536638]
[1736526131666,0.001,93758.0,93742.0,0.173]
[1736526131852,0.001,93758.0,93744.0,0.02174998]
[1736526132066,0.001,93758.0,93745.0,0.213344]
[1736526132274,0.001,93758.0,93744.0,0.02174998]
[1736526132483,0.001,93758.0,93749.0,0.213333]
[1736526132689,0.001,93758.0,93755.0,0.42664]
[1736526132897,0.213317,93757.0,93736.0,0.213365]
[1736526133091,0.0781,93755.0,93741.0,0.213353]
[1736526133315,0.213333,93750.0,93741.0,0.213353]
[1736526133649,0.213333,93750.0,93735.0,0.001]
[1736526133650,0.213341,93747.0,93735.0,0.214366]
[1736526133859,0.0781,93755.0,93735.0,0.001]
[1736526133860,0.213364,93737.0,93735.0,0.001]
[1736526134088,0.0491,93746.0,93735.0,0.001]
[1736526134301,0.213344,93745.0,93735.0,0.001]
[1736526135146,0.213346,93744.0,93735.0,0.001]
[1736526135361,0.213364,93737.0,93735.0,0.001]
[1736526135982,0.18149976,93736.0,93735.0,0.001]
[1736526136809,0.33149976,93736.0,93735.0,0.001]
[1736526137213,0.49127325,93736.0,93735.0,0.001]
[1736526138227,0.39127325,93736.0,93735.0,0.001]
[1736526139487,0.363367,93735.0,93733.0,0.00048498]
[1736526139685,0.20859952,93734.0,93697.0,0.20944978]
[1736526139896,0.213431,93707.0,93697.0,0.20959515]
[1736526140317,0.21344,93704.0,93697.0,0.00014537]
[1736526140743,0.213431,93707.0,93697.0,0.00014537]
[1736526141074,0.21344,93703.0,93697.0,0.00014537]
[1736526141620,0.14698686,93703.0,93697.0,0.00014537]
[1736526141857,0.213474,93688.0,93653.0,0.213553]
[1736526142056,0.31777376,93688.0,93687.0,0.00013405]
[1736526143189,0.32819209,93688.0,93687.0,0.00013405]
[1736526143896,0.213474,93688.0,93687.0,0.00013405]
[1736526144129,0.213456,93696.0,93687.0,0.00013405]
[1736526144341,0.213458,93696.0,93687.0,0.00013405]
[1736526144570,0.01083954,93703.0,93687.0,0.00013405]
[1736526144776,0.426937,93691.0,93687.0,0.00013405]
[1736526144994,0.213472,93689.0,93687.0,0.00013405]
[1736526145190,0.003,93688.0,93687.0,0.00013405]
[1736526145571,0.213468,93691.0,93687.0,0.00013405]
[1736526145768,0.213468,93691.0,93687.0,0.00113405]
[1736526146181,0.213468,93691.0,93687.0,0.00013405]
[1736526146813,0.213462,93694.0,93687.0,0.00013405]
[1736526146982,0.213471,93690.0,93687.0,0.00013405]
[1736526148158,0.213462,93694.0,93687.0,0.00213405]
[1736526148363,0.213462,93694.0,93687.0,0.00013405]
[1736526148364,0.21347,93690.0,93687.0,0.00013405]
[1736526148575,0.18289976,93689.0,93687.0,0.00013405]
[1736526148783,0.213474,93688.0,93687.0,0.00513405]
[1736526148996,0.31777376,93688.0,93687.0,0.00013405]
[1736526149415,0.31777376,93688.0,93687.0,0.00513405]
[1736526150237,0.213474,93688.0,93687.0,0.00513405]
[1736526150858,0.36906902,93688.0,93687.0,0.00513405]
[1736526151521,0.51906902,93688.0,93687.0,0.00513405]
[1736526151818,0.64756902,93688.0,93687.0,0.00513405]
[1736526152041,0.74756902,93688.0,93687.0,0.00013405]
[1736526152301,0.213531,93663.0,93652.0,7e-05]
[1736526152524,0.46148386,93663.0,93662.0,0.01440328]
[1736526152995,0.44013076,93663.0,93662.0,0.01440328]
[1736526153257,0.213531,93663.0,93662.0,0.01440328]
[1736526156009,0.21342,93712.0,93664.0,0.213529]
[1736526156218,0.213476,93688.0,93674.0,0.213505]
[1736526156430,0.21348,93686.0,93676.0,0.023]
[1736526156670,0.09487689,93709.0,93665.0,0.15]
[1736526156902,0.19917665,93709.0,93677.0,0.10429976]
[1736526157107,0.213444,93702.0,93684.0,0.213482]
[1736526157309,0.213428,93708.0,93683.0,0.023]
[1736526157510,0.09487689,93709.0,93686.0,0.023]
[1736526157740,0.213428,93708.0,93687.0,0.023]
[1736526157949,0.05809782,93713.0,93687.0,0.10429976]
[1736526158151,0.05809782,93713.0,93688.0,0.023]
[1736526158363,0.05809782,93713.0,93687.0,0.10429976]
[1736526158364,0.05809782,93713.0,93697.0,0.213452]
[1736526158575,0.05809782,93713.0,93697.0,0.002]
[1736526158705,0.213435,93706.0,93697.0,0.002]
[1736526159496,0.16239758,93713.0,93697.0,0.002]
[1736526159497,0.05809782,93713.0,93697.0,0.006]
[1736526159713,0.05809782,93713.0,93698.0,0.213451]
[1736526160146,0.0755,93724.0,93699.0,0.023]
[1736526160350,0.213394,93723.0,93707.0,0.21343]
[1736526160563,0.00014582,93720.0,93697.0,0.001]
[1736526160743,0.00014582,93720.0,93699.0,0.023]
[1736526160744,0.213417,93714.0,93699.0,0.023]
[1736526161011,0.213417,93714.0,93698.0,0.213451]
[1736526161012,0.213406,93718.0,93697.0,0.001]
[1736526161220,0.10429976,93717.0,93697.0,0.006]
[1736526161776,0.213429,93708.0,93690.0,0.213469]
[1736526162030,0.213438,93704.0,93697.0,0.006]
[1736526162444,0.213438,93704.0,93683.0,0.02124091]
[1736526162445,0.10429976,93704.0,93683.0,0.02124091]
[1736526162657,0.03264354,93742.0,93666.0,0.0816]
[1736526162658,0.1,93733.0,93697.0,0.005]
[1736526162862,0.10429976,93719.0,93697.0,0.005]
[1736526163065,0.15,93718.0,93697.0,0.005]
[1736526163277,0.213424,93710.0,93697.0,0.005]
[1736526163483,0.10429976,93717.0,93696.0,0.213454]
[1736526163682,0.10429976,93717.0,93687.0,0.023]
[1736526163683,0.21341,93716.0,93697.0,0.213454]
[1736526164090,0.21342,93712.0,93697.0,0.001]
[1736526164594,0.213403,93719.0,93698.0,0.023]
[1736526164803,0.01062055,93724.0,93698.0,0.12836689]
[1736526165213,0.01062055,93724.0,93702.0,0.023]
[1736526165415,0.01062055,93724.0,93704.0,0.023]
[1736526165528,0.213387,93727.0,93714.0,0.213414]
[1736526165727,0.01088263,93726.0,93710.0,0.213423]
[1736526166176,0.213396,93723.0,93708.0,0.023]
[1736526166377,0.01088263,93726.0,93708.0,0.023]
[1736526166752,0.213375,93732.0,93717.0,0.213406]
[1736526166956,0.213375,93732.0,93710.0,0.213424]
[1736526166957,0.213386,93727.0,93710.0,0.213424]
[1736526167307,0.213384,93728.0,93710.0,0.009]
[1736526167516,0.01063197,93727.0,93710.0,0.009]
[1736526167723,0.01063197,93727.0,93711.0,0.213422]
[1736526169164,0.213373,93733.0,93716.0,0.023]
[1736526169608,0.0759,93736.0,93718.0,0.023]
[1736526169840,0.0001708,93758.0,93717.0,0.53218271]
[1736526169841,0.0833,93751.0,93719.0,0.34176956]
[1736526170048,0.0833,93751.0,93719.0,0.34070276]
[1736526170264,0.0833,93751.0,93719.0,0.49070276]
[1736526170469,0.0476,93757.0,93719.0,0.56590276]
[1736526170677,0.21333,93752.0,93719.0,0.56590276]
[1736526171113,0.213347,93744.0,93719.0,0.49070276]
[1736526171535,0.21333,93752.0,93717.0,0.213408]
[1736526171536,0.213367,93735.0,93717.0,0.213408]
[1736526171749,0.213377,93731.0,93715.0,0.0216272]
[1736526171953,0.213377,93731.0,93719.0,0.006]
[1736526172218,0.213371,93734.0,93719.0,0.006]
[1736526172439,0.15,93755.0,93719.0,0.00706695]
[1736526172642,0.213361,93738.0,93719.0,0.00706695]
[1736526172843,0.21335,93743.0,93719.0,0.13329976]
[1736526173540,0.21335,93743.0,93719.0,0.12729976]
[1736526173951,0.21335,93743.0,93719.0,0.13629976]
[1736526174160,0.4267,93743.0,93719.0,0.13629976]
[1736526174569,0.213341,93747.0,93719.0,0.13629976]
[1736526174785,0.0754,93749.0,93719.0,0.13929976]
[1736526174992,0.213341,93747.0,93719.0,0.13929976]
[1736526175200,0.213341,93747.0,93719.0,0.14036651]
[1736526175410,0.0754,93749.0,93719.0,0.14036651]
[1736526175824,0.260918,93757.0,93719.0,0.14036651]
[1736526175825,0.01040051,93754.0,93719.0,0.14036651]
[1736526176049,0.01040051,93754.0,93719.0,0.21866651]
[1736526176256,0.01040051,93754.0,93719.0,0.21759976]
[1736526176463,0.213328,93753.0,93719.0,0.13929976]
[1736526177115,0.213345,93745.0,93719.0,0.12729976]
[1736526177365,0.213356,93740.0,93719.0,0.10829976]
[1736526177573,0.213327,93753.0,93719.0,0.1413666]
[1736526177778,0.213348,93744.0,93719.0,0.1373666]
[1736526177982,0.213339,93748.0,93719.0,0.1283666]
[1736526178215,0.213339,93748.0,93719.0,0.1413666]
[1736526178636,0.01060845,93752.0,93719.0,0.1373666]
[1736526178846,0.213336,93749.0,93719.0,0.1373666]
[1736526179487,0.01060845,93752.0,93719.0,0.1373666]
[1736526179693,0.213336,93749.0,93719.0,0.1283666]
[1736526179943,0.213354,93741.0,93719.0,0.1373666]
[1736526180154,0.213383,93728.0,93713.0,0.213415]
[1736526180362,0.21354882,93720.0,93691.0,0.0757]
[1736526180565,0.00014582,93720.0,93719.0,0.014]
[1736526180974,0.00014582,93720.0,93716.0,0.426819]
[1736526181179,0.00014582,93720.0,93719.0,0.009]
[1736526181390,0.00014582,93720.0,93719.0,0.01006688]
[1736526181589,0.00014582,93720.0,93719.0,0.236403]
[1736526182236,0.00014582,93720.0,93713.0,0.001]
[1736526182514,0.0766,93719.0,93713.0,0.001]
[1736526182720,0.21341,93716.0,93713.0,0.001]
[1736526182923,0.213415,93714.0,93713.0,0.001]
[1736526183360,0.339404,93719.0,93688.0,0.213474]
[1736526183361,0.126,93719.0,93688.0,0.213474]
[1736526183563,0.213461,93694.0,93680.0,0.213491]
[1736526183780,0.15,93717.0,93657.0,0.1]
[1736526183984,0.0784,93686.0,93663.0,0.10429976]
[1736526184402,0.0784,93686.0,93662.0,0.014257]
[1736526184622,0.213443,93702.0,93691.0,0.213466]
[1736526184822,0.213417,93713.0,93704.0,0.023]
[1736526184823,0.09487689,93713.0,93704.0,0.023]
[1736526185056,0.09487689,93713.0,93694.0,0.213459]
[1736526185260,0.213419,93712.0,93696.0,0.213456]
[1736526185461,0.291811,93716.0,93699.0,0.023]
[1736526185667,0.291811,93716.0,93700.0,0.213446]
[1736526186084,0.213413,93715.0,93700.0,0.213446]
[1736526186316,0.426826,93715.0,93700.0,0.213446]
[1736526186427,0.213413,93715.0,93700.0,0.213446]
[1736526186834,0.213422,93711.0,93700.0,0.213446]
[1736526187258,0.213445,93701.0,93688.0,0.213473]
[1736526187472,0.213439,93704.0,93690.0,0.213469]
[1736526187697,0.213444,93701.0,93700.0,0.005]
[1736526187902,0.213429,93708.0,93688.0,0.00014628]
[1736526187903,0.213455,93697.0,93688.0,0.00014628]
[1736526188107,0.213415,93714.0,93688.0,0.00014628]
[1736526188108,0.15,93713.0,93700.0,0.006]
[1736526188317,0.213444,93701.0,93700.0,0.006]
[1736526188512,0.15,93711.0,93688.0,0.00014628]
[1736526188713,0.213458,93696.0,93690.0,0.004]
[1736526189735,0.213466,93692.0,93690.0,0.004]
[1736526189934,0.213466,93692.0,93688.0,0.00014628]
[1736526190969,0.213466,93692.0,93688.0,0.00114628]
[1736526191193,0.21346,93695.0,93688.0,0.00114628]
[1736526191392,0.21345,93699.0,93690.0,0.029]
[1736526191609,0.21344,93703.0,93690.0,0.03006723]
[1736526191808,0.213442,93702.0,93690.0,0.023]
[1736526192008,0.213442,93702.0,93690.0,0.236469]
[1736526192311,0.213436,93705.0,93690.0,0.236469]
[1736526192774,0.213446,93701.0,93692.0,0.023]
[1736526193373,0.213436,93705.0,93693.0,0.213463]
[1736526193579,0.213424,93710.0,93694.0,0.02406721]
[1736526193781,0.213416,93714.0,93694.0,0.02406716]
[1736526193984,0.213413,93715.0,93704.0,0.213435]
[1736526194599,0.213413,93715.0,93705.0,0.213434]
[1736526194827,0.01052058,93719.0,93696.0,0.023]
[1736526194828,0.01052058,93719.0,93711.0,0.213421]
[1736526195031,0.01052058,93719.0,93708.0,0.213428]
[1736526195235,0.213406,93718.0,93708.0,0.213428]
[1736526195437,0.213399,93721.0,93708.0,0.213428]
[1736526195564,0.213409,93717.0,93708.0,0.213428]
[1736526195768,0.213409,93717.0,93704.0,0.217436]
[1736526195958,0.213419,93712.0,93704.0,0.004]
[1736526196314,0.213413,93715.0,93704.0,0.004]
[1736526196697,0.213413,93715.0,93703.0,0.21344]
[1736526196896,0.213415,93714.0,93700.0,0.213445]
[1736526197106,0.213415,93714.0,93711.0,0.002]
[1736526197107,0.426831,93714.0,93711.0,0.002]
[1736526197483,0.426831,93714.0,93700.0,0.213445]
[1736526197917,0.213415,93714.0,93704.0,0.213437]
[1736526198117,0.213415,93714.0,93696.0,0.236456]
[1736526198324,0.213409,93717.0,93705.0,0.023]
[1736526198522,0.0461,93723.0,93707.0,0.023]
[1736526198723,0.213329,93752.0,93690.0,0.19657782]
[1736526198724,0.01049391,93737.0,93724.0,0.21339]
[1736526199000,0.075,93739.0,93726.0,0.023]
[1736526199161,0.0453,93740.0,93725.0,0.10536665]
[1736526199332,0.0453,93740.0,93728.0,0.023]
[1736526199534,0.213368,93735.0,93722.0,0.213395]
[1736526199796,0.213379,93730.0,93717.0,0.213407]
[1736526200008,0.426758,93730.0,93717.0,0.213407]
[1736526200414,0.213371,93734.0,93721.0,0.213397]
[1736526200748,0.04544587,93740.0,93722.0,0.00406694]
[1736526200961,0.04544587,93740.0,93723.0,0.10429976]
[1736526201088,0.04544587,93740.0,93725.0,0.023]
[1736526201292,0.04544587,93740.0,93719.0,0.213403]
[1736526201493,0.10429976,93739.0,93717.0,0.001]
[1736526201706,0.213402,93720.0,93717.0,0.001]
[1736526201916,0.426804,93720.0,93717.0,0.001]
[1736526202536,0.426804,93720.0,93689.0,0.23437063]
[1736526202537,0.213378,93731.0,93703.0,0.00106708]
[1736526202776,0.213378,93731.0,93719.0,0.213402]
[1736526203143,0.0812,93737.0,93704.0,0.10429976]
[1736526203341,0.10429976,93736.0,93704.0,0.10429976]
[1736526203547,0.15,93735.0,93695.0,0.00106699]
[1736526203841,0.15,93735.0,93690.0,0.01041981]
[1736526203842,0.21341,93717.0,93705.0,0.213434]
[1736526204049,0.10429976,93734.0,93701.0,0.213443]
[1736526204050,0.213374,93732.0,93701.0,0.213443]
[1736526204405,0.213374,93732.0,93703.0,0.21344]
[1736526204406,0.213419,93713.0,93703.0,0.21344]
[1736526204715,0.09168166,93737.0,93658.0,0.0777]
[1736526204716,0.15,93710.0,93658.0,0.0777]
[1736526204921,0.15,93710.0,93669.0,0.213515]
[1736526204922,0.15,93708.0,93669.0,0.213515]
[1736526205040,0.2274,93706.0,93663.0,0.10429976]
[1736526205256,0.213495,93679.0,93664.0,0.213529]
[1736526205461,0.213505,93675.0,93662.0,0.014257]
[1736526205669,0.213505,93675.0,93663.0,0.213531]
[1736526205865,0.213454,93697.0,93663.0,0.213531]
[1736526205866,0.213499,93677.0,93663.0,0.213531]
[1736526206090,0.09487689,93701.0,93671.0,0.213511]
[1736526206294,0.09487689,93701.0,93674.0,0.023]
[1736526206553,0.09487689,93701.0,93678.0,0.023]
[1736526206745,0.213475,93688.0,93678.0,0.023]
[1736526207305,0.213459,93695.0,93683.0,0.213484]
[1736526207511,0.213449,93699.0,93684.0,0.02406732]
[1736526207712,0.213446,93701.0,93690.0,0.023]
[1736526207945,0.213446,93701.0,93684.0,0.12729976]
[1736526207946,0.09487689,93712.0,93695.0,0.023]
[1736526208333,0.213419,93712.0,93699.0,0.023]
[1736526208535,0.001,93701.0,93699.0,0.023]
[1736526208738,0.001,93701.0,93697.0,0.023]
[1736526208883,0.001,93701.0,93697.0,0.12729976]
[1736526209092,0.213422,93711.0,93697.0,0.12729976]
[1736526209470,0.213422,93711.0,93687.0,0.213476]
[1736526209672,0.001,93712.0,93688.0,0.10429976]
[1736526209872,0.213426,93709.0,93677.0,0.213497]
[1736526210101,0.21347,93690.0,93677.0,0.31779676]
[1736526210481,0.21347,93690.0,93680.0,0.023]
[1736526210685,0.426941,93690.0,93678.0,0.023]
[1736526210888,0.213479,93686.0,93678.0,0.023]
[1736526211094,0.10429976,93708.0,93678.0,0.023]
[1736526211285,0.213471,93690.0,93678.0,0.023]
[1736526211467,0.21348,93686.0,93676.0,0.00014628]
[1736526211764,0.21348,93686.0,93680.0,0.009]
[1736526211977,0.213472,93689.0,93678.0,0.023]
[1736526212123,0.213472,93689.0,93679.0,0.213495]
[1736526212326,0.213472,93689.0,93678.0,0.023]
[1736526213344,0.213472,93689.0,93679.0,0.213495]
[1736526213565,0.213472,93689.0,93678.0,0.023]
[1736526213968,0.0481,93687.0,93680.0,0.007]
[1736526214323,0.0481,93687.0,93676.0,0.00014628]
[1736526214527,0.213479,93686.0,93676.0,0.00014628]
[1736526214724,0.21349,93682.0,93679.0,0.006]
[1736526214982,0.0481,93687.0,93676.0,0.00014628]
[1736526215183,0.213495,93679.0,93678.0,0.001]
[1736526215584,0.42699,93679.0,93676.0,0.00014628]
[1736526216790,0.42699,93679.0,93676.0,0.00114628]
[1736526217794,0.42699,93679.0,93676.0,0.00414628]
[1736526218215,0.363499,93677.0,93676.0,0.00114628]
[1736526218443,0.363499,93677.0,93676.0,0.00214628]
[1736526218644,0.363499,93677.0,93662.0,0.014257]
[1736526218645,0.2785,93676.0,93662.0,0.014257]
[1736526218854,0.213531,93663.0,93662.0,0.014257]
[1736526219090,0.46783076,93663.0,93662.0,0.014257]
[1736526220309,0.363531,93663.0,93662.0,0.014257]
[1736526220920,0.215531,93663.0,93662.0,0.014257]
[1736526221129,0.002,93663.0,93662.0,0.014257]
[1736526221727,0.002,93663.0,93662.0,0.015257]
[1736526221877,0.002,93663.0,93662.0,0.014257]
[1736526222287,0.213517,93669.0,93662.0,0.016257]
[1736526222622,0.002,93663.0,93662.0,0.016257]
[1736526223197,0.002,93663.0,93662.0,0.039257]
[1736526223777,0.213504,93675.0,93663.0,0.236531]
[1736526223917,0.213504,93675.0,93663.0,0.34083076]
[1736526224144,0.213504,93675.0,93665.0,0.023]
[1736526224521,0.213504,93675.0,93664.0,0.023]
[1736526224748,0.213513,93671.0,93664.0,0.023]
[1736526225519,0.427027,93671.0,93664.0,0.023]
[1736526225729,0.213521,93668.0,93664.0,0.023]
[1736526226089,0.213508,93674.0,93664.0,0.023]
[1736526226304,0.213508,93674.0,93666.0,0.023]
[1736526226508,0.213521,93668.0,93664.0,0.024]
[1736526226711,0.427042,93668.0,93664.0,0.001]
[1736526226846,0.427042,93668.0,93664.0,0.005]
[1736526227047,0.213529,93664.0,93662.0,0.014257]
[1736526228593,0.213517,93669.0,93662.0,0.019257]
[1736526228802,0.427035,93669.0,93662.0,0.019257]
[1736526229016,0.213517,93669.0,93662.0,0.019257]
[1736526229171,0.213508,93673.0,93663.0,0.023]
[1736526229381,0.213506,93675.0,93665.0,0.023]
[1736526229749,0.001,93669.0,93665.0,0.023]
[1736526230284,0.213506,93675.0,93665.0,0.023]
[1736526230518,0.002,93675.0,93665.0,0.023]
[1736526230726,0.002,93675.0,93665.0,0.02406751]
[1736526230984,0.002,93675.0,93667.0,0.023]
[1736526231146,0.002,93675.0,93672.0,0.023]
[1736526231347,0.002,93675.0,93665.0,0.007]
[1736526231549,0.002,93675.0,93662.0,0.014257]
[1736526231899,0.213513,93672.0,93665.0,0.005]
[1736526232129,0.00014574,93678.0,93667.0,0.213522]